bitfinex-derivatives/quotes_ETHF0:USTF0_20210401
["timestamp","ask_amount","ask_price","bid_price","bid_amount"]
[1617264925248,44.7996,1930.1,1929.7,2.90695]
[1617264927251,2.90695,1929.8,1929.7,2.90695]
[1617264927551,6.03965,1929.8,1929.7,2.90695]
[1617264928452,7.08025,1929.8,1929.7,2.90695]
[1617264932056,7.08025,1929.8,1929.7,2.28695]
[1617264933161,5.08025,1929.8,1929.7,2.28695]
[1617264933362,3.94755,1929.8,1929.7,2.28695]
[1617264934864,42.7996,1930.1,1929.7,2.28695]
[1617264935263,42.7996,1930.1,1930.0,2.90695]
[1617264935462,42.7996,1930.1,1930.0,4.06795]
[1617264935863,42.7996,1930.1,1930.0,90.32905]
[1617264942376,1.17234625,1931.0,1930.0,120.32905]
[1617264942574,0.15054552,1930.9,1930.0,34.06795]
[1617264942773,0.48174323,1931.1,1930.0,34.06795]
[1617264942774,0.45161344,1931.1,1930.0,34.06795]
[1617264942974,0.45161344,1931.1,1930.7,59.0358]
[1617264943174,0.15053212,1931.2,1930.7,59.0358]
[1617264943373,0.15053212,1931.2,1931.1,2.90695]
[1617264945474,0.15053212,1931.2,1931.1,2.45655]
[1617264945877,2.90695,1931.3,1931.1,2.45655]
[1617264946379,2.90695,1931.3,1931.1,1.69545]
[1617264949381,15.15041344,1931.4,1931.1,1.69545]
[1617264949780,15.0,1931.4,1931.1,1.69545]
[1617264951582,2.90695,1931.2,1931.1,1.69545]
[1617264953985,15.0,1931.4,1931.1,2.91995]
[1617264954185,15.0,1931.4,1931.1,32.91995]
[1617264955587,15.0,1931.4,1931.3,2.90695]
[1617264955787,15.0,1931.4,1931.3,32.90695]
[1617264958490,2.90695,1932.4,1931.3,32.90695]
[1617264958889,3.05736366,1932.4,1931.8,62.3688]
[1617264959089,13.9198,1932.3,1931.8,93.3858]
[1617264959489,13.9198,1932.3,1932.2,2.90695]
[1617264959889,13.9198,1932.3,1932.2,4.35595]
[1617264961593,13.9198,1932.3,1932.2,34.35595]
[1617264963697,27.9295,1932.3,1932.2,34.35595]
[1617264965402,27.1948,1932.3,1932.2,34.35595]
[1617264968202,5.5684,1932.3,1932.2,34.35595]
[1617264968401,15.0823,1932.6,1932.2,34.35595]
[1617264969607,15.0823,1932.6,1932.5,32.90695]
[1617264974715,0.15026099,1933.7,1932.5,34.21535]
[1617264974914,0.15026099,1933.7,1933.3,60.6624]
[1617264975115,2.06163301,1934.3,1933.4,30.0]
[1617264975314,2.06163301,1934.3,1934.0,82.4428]
[1617264975515,0.96143109,1934.6,1934.1,30.0]
[1617264975716,0.96143109,1934.6,1934.3,32.90695]
[1617264975916,1.1,1934.7,1934.3,32.90695]
[1617264976114,2.90695,1934.8,1934.3,32.90695]
[1617264976714,81.4509,1934.7,1934.3,2.90695]
[1617264976915,81.4509,1934.7,1934.3,2.62305]
[1617264977114,81.4509,1934.7,1933.4,81.4509]
[1617264977316,1.6075,1934.5,1933.4,81.4509]
[1617264977619,1.6075,1934.5,1934.2,2.90695]
[1617264978219,2.90695,1934.6,1934.2,2.90695]
[1617264978418,14.6884,1934.3,1934.2,2.90695]
[1617264979819,28.4976,1934.3,1934.2,2.90695]
[1617264980621,28.4976,1934.3,1934.2,73.73235]
[1617264983623,28.4976,1934.3,1934.2,2.90695]
[1617264985223,42.9132,1934.3,1934.2,2.90695]
[1617264987224,42.9132,1934.3,1934.2,4.02325]
[1617264987624,42.9132,1934.3,1934.2,34.02325]
[1617264988124,42.9132,1934.3,1934.2,35.04975]
[1617264988327,42.9132,1934.3,1934.2,4.02325]
[1617264988527,42.9132,1934.3,1934.2,2.90695]
[1617264988724,53.9504,1934.3,1934.2,2.90695]
[1617264990036,52.9132,1934.3,1934.2,2.90695]
[1617264990829,52.9132,1934.3,1934.2,75.60305]
[1617265001942,52.9132,1934.3,1934.2,77.11545]
[1617265002342,52.9132,1934.3,1934.2,107.11545]
[1617265005345,52.9132,1934.3,1934.2,32.90695]
[1617265006247,49.9277,1934.3,1934.2,33.91225]
[1617265006646,47.7844,1934.3,1934.2,33.91225]
[1617265007451,24.7623,1934.3,1934.2,33.91225]
[1617265007650,22.1818,1934.3,1934.2,33.91225]
[1617265008053,8.9217,1934.3,1934.2,33.91225]
[1617265008250,6.1388,1934.3,1934.2,33.91225]
[1617265008451,1.0499,1935.0,1934.2,33.91225]
[1617265008650,1.0441,1935.3,1934.2,33.91225]
[1617265008852,1.0441,1935.3,1935.1,85.3195]
[1617265009050,1.0441,1935.3,1935.1,115.3195]
[1617265009850,1.0441,1935.3,1935.2,2.90695]
[1617265010251,1.0441,1935.3,1935.2,4.22545]
[1617265010451,1.0221,1935.5,1935.2,4.22545]
[1617265010651,2.90695,1936.1,1935.2,4.22545]
[1617265011250,2.90695,1936.1,1935.2,2.90695]
[1617265011853,1.0386,1936.2,1935.9,2.90695]
[1617265012052,1.1,1936.3,1935.9,2.90695]
[1617265012253,3.1,1936.7,1936.0,66.8776]
[1617265012453,1.1,1936.3,1936.0,66.8776]
[1617265012653,1.1,1936.3,1935.9,2.90695]
[1617265012854,1.1,1936.3,1935.9,2.15635]
[1617265013857,2.90695,1936.0,1935.9,2.15635]
[1617265014057,3.95475,1936.0,1935.9,2.15635]
[1617265014257,3.95475,1936.0,1935.9,1.74395]
[1617265019961,5.35865,1936.0,1934.9,58.2965]
[1617265021566,5.35865,1936.0,1934.9,88.2965]
[1617265021964,2.4517,1936.0,1935.4,2.90695]
[1617265022664,2.4517,1936.0,1935.4,3.93045]
[1617265023065,2.4517,1936.0,1935.7,68.755]
[1617265023465,1.0478,1936.0,1935.7,68.755]
[1617265024069,2.90695,1935.8,1935.7,68.755]
[1617265024268,4.03475,1935.8,1935.7,68.755]
[1617265024467,4.03475,1935.8,1935.4,2.90695]
[1617265025368,2.90695,1935.8,1935.4,2.90695]
[1617265025969,1.0478,1936.0,1935.6,2.90695]
[1617265027168,1.0478,1936.0,1935.6,2.14785]
[1617265028069,2.90695,1935.7,1935.4,2.90695]
[1617265028969,14.6616,1936.1,1935.8,30.0]
[1617265029871,14.6616,1936.1,1935.6,1.4561]
[1617265030071,14.6616,1936.1,1936.0,2.90695]
[1617265031974,17.56855,1936.1,1936.0,2.90695]
[1617265033477,17.56855,1936.1,1934.8,30.0]
[1617265034076,14.6616,1936.1,1934.8,30.0]
[1617265036081,14.6616,1936.1,1935.7,2.90695]
[1617265036883,15.7054,1936.1,1935.7,2.90695]
[1617265037982,15.7054,1936.1,1935.9,2.90695]
[1617265038184,15.7054,1936.1,1934.8,30.0]
[1617265039983,15.7054,1936.1,1935.7,2.90695]
[1617265040888,15.7054,1936.1,1935.7,32.90695]
[1617265041087,14.6616,1936.1,1936.0,30.0]
[1617265041485,14.6616,1936.1,1935.9,81.6841]
[1617265042086,14.6616,1936.1,1936.0,2.90695]
[1617265051900,14.6616,1936.1,1936.0,69.26745]
[1617265052499,14.72174038,1936.1,1936.0,69.26745]
[1617265053298,14.72174038,1936.1,1936.0,70.34435]
[1617265056303,8.6186,1936.1,1936.0,70.30805]
[1617265056502,8.6186,1936.1,1936.0,3.94755]
[1617265056703,2.5756,1936.1,1936.0,5.25755]
[1617265057103,2.5756,1936.1,1936.0,4.21695]
[1617265057303,6.571,1936.2,1936.0,6.21695]
[1617265057505,8.0,1937.5,1936.9,71.3876]
[1617265057703,8.0,1937.5,1936.9,72.5789]
[1617265058303,8.0,1937.5,1937.4,2.90695]
[1617265058503,8.0,1937.5,1937.4,34.11445]
[1617265061708,5.4471,1937.5,1937.4,34.11445]
[1617265061908,4.2828,1937.5,1937.4,34.11445]
[1617265062608,4.2828,1937.5,1937.4,36.11445]
[1617265063809,1.7072,1937.5,1937.4,36.11445]
[1617265065213,1.7072,1937.5,1937.4,37.14405]
[1617265067115,1.7072,1937.5,1937.4,36.11445]
[1617265067515,11.7072,1937.5,1937.4,36.11445]
[1617265070719,11.7072,1937.5,1937.4,34.11445]
[1617265070917,11.7072,1937.5,1937.4,32.90695]
[1617265076726,10.0,1937.5,1937.4,32.90695]
[1617265077925,11.7072,1937.5,1937.4,110.12955]
[1617265086533,11.7072,1937.5,1937.4,80.12955]
[1617265091741,12.9791,1937.5,1937.4,2.90695]
[1617265094842,11.7072,1937.5,1937.4,2.90695]
[1617265095242,11.7072,1937.5,1937.4,32.90695]
[1617265095643,11.7072,1937.5,1937.4,34.03145]
[1617265100043,11.7072,1937.5,1937.4,32.90695]
[1617265100446,10.0,1937.5,1937.4,32.90695]
[1617265102747,10.0,1937.5,1937.4,33.94075]
[1617265102948,10.0,1937.5,1937.4,35.94075]
[1617265103949,9.6338,1937.5,1937.4,35.94075]
[1617265104150,6.7143,1937.5,1937.4,35.94075]
[1617265104352,3.3938,1937.5,1937.4,35.94075]
[1617265104550,1.7072,1937.7,1937.5,58.9852]
[1617265104750,1.7072,1937.7,1937.6,34.90695]
[1617265104951,14.3119,1938.9,1937.6,34.90695]
[1617265106353,28.6813,1939.5,1937.6,34.90695]
[1617265106753,28.6813,1939.5,1939.4,2.90695]
[1617265106953,28.6813,1939.5,1939.4,33.97305]
[1617265107853,28.5824,1939.5,1939.4,33.97305]
[1617265108052,28.4835,1939.5,1939.4,33.97305]
[1617265108652,28.3846,1939.5,1939.4,33.97305]
[1617265108852,28.2857,1939.5,1939.4,33.97305]
[1617265109252,28.1868,1939.5,1939.4,33.97305]
[1617265109553,28.0879,1939.5,1939.4,33.97305]
[1617265109852,27.989,1939.5,1939.4,33.97305]
[1617265110254,27.8901,1939.5,1939.4,33.97305]
[1617265110755,27.7912,1939.5,1939.4,33.97305]
[1617265111357,28.733,1939.5,1939.4,33.97305]
[1617265112160,28.6341,1939.5,1939.4,33.97305]
[1617265112359,27.5934,1939.5,1939.4,33.97305]
[1617265116169,27.5934,1939.5,1939.4,105.01485]
[1617265117670,27.5934,1939.5,1939.4,33.97305]
[1617265137192,27.5934,1939.5,1939.4,34.99065]
[1617265137394,27.5934,1939.5,1939.4,33.97305]
[1617265138797,0.02988468,1940.3,1939.4,35.00375]
[1617265138998,0.02988468,1940.3,1940.2,2.90695]
[1617265139199,0.02987702,1940.8,1940.2,32.90695]
[1617265139597,0.02987581,1940.9,1940.4,66.5569]
[1617265140198,0.02987579,1940.8,1940.4,66.5569]
[1617265140598,0.02987579,1940.8,1940.2,32.90695]
[1617265140999,0.02987579,1940.8,1940.7,2.90695]
[1617265141600,0.47806704,1941.0,1940.7,2.90695]
[1617265142200,0.47806992,1940.9,1940.7,2.90695]
[1617265142399,1.85436992,1940.9,1940.7,2.90695]
[1617265142599,11.0,1940.8,1940.7,2.90695]
[1617265143200,11.47807261,1940.8,1940.7,2.90695]
[1617265143399,84.8513,1940.7,1939.2,30.0]
[1617265143900,14.178,1940.6,1939.2,30.0]
[1617265144102,0.02988476,1940.3,1939.2,30.0]
[1617265144300,1.69728476,1940.3,1939.2,30.0]
[1617265144501,0.02988677,1940.0,1939.2,30.0]
[1617265144899,0.02988677,1940.0,1939.9,2.90695]
[1617265145103,14.6323,1940.2,1939.9,2.90695]
[1617265145701,0.02988838,1940.1,1939.9,2.90695]
[1617265146501,0.02988963,1940.0,1939.9,2.90695]
[1617265146903,14.6323,1940.2,1939.9,2.90695]
[1617265147105,2.90695,1940.0,1939.7,2.90695]
[1617265148505,0.02989372,1939.8,1939.7,2.90695]
[1617265149106,2.93684372,1939.8,1939.7,2.90695]
[1617265149907,31.99504372,1939.8,1939.7,2.90695]
[1617265152812,31.96515,1939.8,1939.7,2.90695]
[1617265153012,31.96515,1939.8,1939.5,2.90695]
[1617265153214,33.96515,1939.8,1939.5,2.90695]
[1617265153513,0.02991178,1939.7,1939.5,2.90695]
[1617265154314,0.02991329,1939.6,1939.5,2.90695]
[1617265155116,2.93686329,1939.6,1939.3,2.90695]
[1617265155515,0.0299134,1939.5,1939.3,2.90695]
[1617265155916,2.93686251,1939.6,1939.3,2.90695]
[1617265156416,2.90695,1939.6,1939.3,2.90695]
[1617265156815,2.92190604,1939.6,1939.3,2.90695]
[1617265157017,2.92190604,1939.6,1939.5,2.90695]
[1617265157619,2.90695,1939.6,1939.5,2.90695]
[1617265161420,32.90695,1939.6,1937.8,30.0]
[1617265161620,2.0,1939.5,1936.9,30.0]
[1617265162025,2.0,1939.5,1937.9,59.8013]
[1617265162225,14.3302,1939.4,1937.9,61.0586]
[1617265163225,14.3302,1939.4,1939.3,2.90695]
[1617265170633,14.2313,1939.4,1939.3,2.90695]
[1617265170834,14.2313,1939.4,1939.3,32.90695]
[1617265176845,29.0582,1939.8,1939.3,32.90695]
[1617265177248,29.0582,1939.8,1939.7,2.90695]
[1617265177448,14.7658,1939.8,1939.7,34.07235]
[1617265177648,11.0,1940.8,1939.7,34.07235]
[1617265177848,11.0,1940.8,1940.5,63.5522]
[1617265178049,11.0,1940.8,1940.6,30.0]
[1617265179249,11.0,1940.8,1940.7,2.90695]
[1617265179449,11.0,1940.8,1940.7,32.90695]
[1617265183352,11.0,1940.8,1940.7,34.90695]
[1617265183754,11.0,1940.8,1940.7,32.90695]
[1617265185556,11.0,1940.8,1940.7,34.90695]
[1617265186963,10.7414,1940.8,1940.7,34.90695]
[1617265187165,4.3102,1940.8,1940.7,34.90695]
[1617265193374,14.2547,1942.4,1940.7,34.90695]
[1617265193975,14.2547,1942.4,1942.3,68.3574]
[1617265194174,14.2547,1942.4,1942.3,99.445]
[1617265195378,14.2547,1942.4,1942.3,102.35195]
[1617265198879,14.2547,1942.4,1942.3,33.99455]
[1617265199080,14.2547,1942.4,1942.3,117.62535]
[1617265203387,14.2547,1942.4,1942.3,33.99455]
[1617265203588,0.01483222,1943.4,1943.3,82.7718]
[1617265203788,13.7391,1943.7,1943.3,113.8812]
[1617265205490,13.7391,1943.7,1943.6,32.90695]
[1617265206490,13.7391,1943.7,1943.6,32.88695]
[1617265208093,13.7391,1943.7,1943.6,32.87695]
[1617265209798,14.9526,1944.6,1943.6,32.87695]
[1617265210001,14.9526,1944.6,1944.2,72.5956]
[1617265210198,14.9526,1944.6,1944.2,103.887]
[1617265210803,14.9526,1944.6,1944.2,31.2914]
[1617265211201,14.9526,1944.6,1944.2,30.0]
[1617265211403,14.9526,1944.6,1944.5,2.90695]
[1617265212406,14.9526,1944.6,1944.5,32.90695]
[1617265212607,14.9526,1944.6,1944.5,97.07595]
[1617265212608,15.9732,1944.6,1944.5,97.07595]
[1617265216209,14.9526,1944.6,1944.5,97.07595]
[1617265217610,14.9526,1944.6,1944.5,98.68385]
[1617265218413,14.9526,1944.6,1944.5,34.51485]
[1617265219011,14.9526,1944.6,1944.5,32.90695]
[1617265219210,16.0,1944.8,1944.5,32.90695]
[1617265219411,16.0,1944.8,1944.7,2.90695]
[1617265219612,16.0,1944.8,1944.7,32.90695]
[1617265221816,10.6534,1944.8,1944.7,32.90695]
[1617265222015,2.0427,1944.8,1944.7,34.90695]
[1617265222215,0.5209,1944.8,1944.7,34.90695]
[1617265222418,2.8439,1945.0,1944.7,34.90695]
[1617265222619,29.7012,1947.3,1944.7,34.90695]
[1617265222817,29.7012,1947.3,1944.8,1.1]
[1617265223020,0.96950147,1947.4,1946.9,30.0]
[1617265223618,0.96950147,1947.4,1947.3,2.90695]
[1617265223819,0.96950147,1947.4,1947.3,34.26445]
[1617265224819,0.96950147,1947.4,1947.3,4.26445]
[1617265225019,0.96950147,1947.4,1947.3,2.90695]
[1617265225419,0.96950147,1947.4,1946.6,30.0]
[1617265225622,3.87645147,1947.4,1946.2,61.8558]
[1617265225819,29.9508,1947.3,1946.2,61.8558]
[1617265226220,44.2257,1947.3,1946.2,61.8558]
[1617265227020,44.2257,1947.3,1946.2,92.8885]
[1617265227421,44.2257,1947.3,1946.2,91.8558]
[1617265227620,44.2257,1947.3,1947.2,2.90695]
[1617265227820,44.2257,1947.3,1947.2,32.90695]
[1617265228223,29.9508,1947.3,1947.2,32.90695]
[1617265228420,14.8499,1947.3,1947.2,32.90695]
[1617265228821,0.96950147,1947.4,1947.2,32.90695]
[1617265229021,0.96950147,1947.4,1947.3,110.0822]
[1617265230521,0.96950147,1947.4,1947.3,30.0]
[1617265231121,0.96950147,1947.4,1947.2,2.90695]
[1617265231321,2.47890147,1947.4,1946.7,30.0]
[1617265231521,2.47890147,1947.4,1947.0,2.90695]
[1617265232124,14.2583,1947.3,1947.0,2.90695]
[1617265232323,42.717,1947.3,1947.0,2.90695]
[1617265233624,2.90695,1947.1,1947.0,2.90695]
[1617265234026,2.90695,1947.1,1944.9,30.0]
[1617265234625,2.0,1947.0,1944.9,30.0]
[1617265234825,3.223,1947.0,1944.9,30.0]
[1617265235629,3.223,1947.0,1945.9,2.90695]
[1617265237529,3.223,1947.0,1946.6,2.90695]
[1617265238329,42.717,1947.3,1946.6,2.90695]
[1617265238534,42.717,1947.3,1946.6,32.90695]
[1617265238729,0.02,1947.2,1946.6,32.90695]
[1617265238930,0.02,1947.2,1946.7,81.1237]
[1617265239133,42.717,1947.3,1946.7,111.1237]
[1617265239535,42.717,1947.3,1946.7,112.5425]
[1617265239735,42.717,1947.3,1947.2,2.90695]
[1617265242137,42.717,1947.3,1947.2,32.90695]
[1617265243336,0.96950147,1947.4,1947.2,32.90695]
[1617265249647,0.96950147,1947.4,1947.2,33.92895]
[1617265251250,0.96950147,1947.4,1947.2,35.92895]
[1617265251449,0.51490147,1947.4,1947.2,33.92895]
[1617265252050,0.51490147,1947.4,1947.3,68.2902]
[1617265252252,0.51490147,1947.4,1947.3,98.2902]
[1617265260257,2.00230147,1947.4,1947.3,98.2902]
[1617265260459,2.00230147,1947.4,1947.3,17.0]
[1617265260860,2.00230147,1947.4,1947.3,98.1489]
[1617265261259,2.00230147,1947.4,1947.3,17.0]
[1617265261659,4.90925147,1947.4,1947.2,2.90695]
[1617265261862,29.5859,1947.3,1947.2,2.90695]
[1617265265664,29.5859,1947.3,1947.2,112.73305]
[1617265268769,29.5859,1947.3,1947.2,32.90695]
[1617265269170,29.5859,1947.3,1947.2,2.89705]
[1617265271568,29.5859,1947.3,1947.2,66.91825]
[1617265274672,29.5859,1947.3,1947.2,96.91825]
[1617265275270,29.5859,1947.3,1947.2,96.90825]
[1617265278173,14.6342,1947.3,1947.2,96.90825]
[1617265278374,13.8754,1947.3,1947.2,97.92595]
[1617265278573,12.2402,1947.3,1947.2,97.92595]
[1617265278773,10.605,1947.3,1947.2,97.92595]
[1617265278973,13.22250147,1947.8,1947.2,97.92595]
[1617265279175,12.10220147,1947.8,1947.2,33.90475]
[1617265279373,14.2359,1948.7,1947.2,33.90475]
[1617265279573,13.1156,1948.7,1948.4,66.5741]
[1617265279776,10.875,1948.7,1948.6,2.90695]
[1617265279972,8.6344,1948.7,1948.6,32.90695]
[1617265280375,7.5141,1948.7,1948.6,32.90695]
[1617265280776,5.2735,1948.7,1948.6,32.90695]
[1617265280976,3.0329,1948.7,1948.6,32.90695]
[1617265281177,1.9126,1948.7,1948.6,32.90695]
[1617265281377,0.7923,1948.7,1948.6,32.90695]
[1617265281577,1.78665,1949.8,1948.6,32.90695]
[1617265281778,1.78665,1949.8,1949.7,2.90695]
[1617265283178,1.78665,1949.8,1948.5,31.29931615]
[1617265283779,1.5654,1950.1,1949.4,2.90695]
[1617265283980,3.1,1950.8,1949.4,2.90695]
[1617265285781,3.1,1950.8,1949.6,2.90695]
[1617265287782,3.1,1950.8,1949.8,2.90695]
[1617265287983,3.1,1950.8,1949.9,61.1345]
[1617265288182,2.0,1950.8,1949.9,61.1345]
[1617265288584,2.0,1950.8,1949.9,91.1345]
[1617265288782,2.0,1950.8,1949.9,91.1145]
[1617265288982,16.3068,1950.8,1949.9,91.1145]
[1617265289182,16.3068,1950.8,1949.9,30.0]
[1617265289382,16.3068,1950.8,1950.0,76.9878]
[1617265289582,31.1487,1950.8,1950.0,76.9878]
[1617265289782,31.1487,1950.8,1950.1,2.90695]
[1617265290583,31.1487,1950.8,1950.1,30.0]
[1617265291385,31.1487,1950.8,1950.0,76.9878]
[1617265291786,2.90695,1950.1,1950.0,76.9878]
[1617265295889,2.90695,1950.1,1950.0,79.89475]
[1617265296289,2.90695,1950.1,1950.0,2.90695]
[1617265296689,2.90695,1950.1,1948.9,61.474]
[1617265296690,4.90695,1950.1,1949.0,30.0]
[1617265297891,2.0,1950.1,1949.5,2.90695]
[1617265299491,2.0,1950.7,1949.5,2.90695]
[1617265299890,2.90695,1949.6,1949.5,2.90695]
[1617265302095,2.90695,1949.6,1948.0,1.1]
[1617265302294,14.4592,1949.5,1948.0,1.1]
[1617265302496,2.0,1949.4,1947.5,30.0]
[1617265302693,31.2047,1949.4,1947.5,30.0]
[1617265303896,2.90695,1948.6,1948.3,2.90695]
[1617265304095,4.18105,1948.6,1948.3,2.90695]
[1617265304897,4.18105,1948.6,1947.3,75.0299]
[1617265305097,6.18105,1948.6,1947.3,75.0299]
[1617265305700,36.18105,1948.6,1947.3,75.0299]
[1617265305897,36.18105,1948.6,1947.5,2.90695]
[1617265306298,36.18105,1948.6,1948.5,1.00441615]
[1617265307499,36.18105,1948.6,1946.2,81.2002]
[1617265307700,36.1958858,1948.6,1946.2,81.2002]
[1617265307901,32.0,1948.4,1946.6,2.90695]
[1617265308100,14.3739,1948.3,1946.6,2.90695]
[1617265308303,32.0,1948.2,1946.6,2.90695]
[1617265308702,14.4395,1948.1,1946.2,81.2002]
[1617265308901,32.0,1948.0,1946.2,81.2002]
[1617265309604,32.0,1948.0,1946.2,81.1802]
[1617265309903,32.0,1948.0,1946.6,2.90695]
[1617265310102,2.0,1948.0,1946.6,2.90695]
[1617265311802,2.0,1948.0,1946.7,30.0]
[1617265312003,2.0,1948.0,1947.5,2.90695]
[1617265312202,2.0,1948.0,1946.2,81.1802]
[1617265312402,2.0,1948.0,1946.2,111.1802]
[1617265314001,2.90695,1947.8,1947.5,2.90695]
[1617265314203,14.4395,1948.1,1947.5,2.90695]
[1617265315003,14.4395,1948.1,1947.5,34.05115]
[1617265316102,14.4395,1948.1,1948.0,2.90695]
[1617265318106,18.97235,1948.1,1947.5,2.90695]
[1617265318307,18.97235,1948.1,1946.3,111.97]
[1617265319106,18.97235,1948.1,1946.3,81.97]
[1617265319307,30.0,1948.0,1946.3,81.97]
[1617265319506,10.0,1947.9,1946.3,81.97]
[1617265319706,40.0,1947.9,1946.3,81.97]
[1617265320110,40.0,1947.9,1946.8,2.90695]
[1617265320308,42.0,1947.9,1946.8,2.90695]
[1617265321909,12.0,1947.9,1946.8,4.01545]
[1617265322109,2.90695,1947.5,1947.3,2.90695]
[1617265322709,13.9634,1947.4,1947.3,2.90695]
[1617265323109,28.6306,1947.4,1947.3,2.90695]
[1617265326113,28.6306,1947.4,1947.3,32.90695]
[1617265327115,28.6306,1947.4,1947.3,92.39835]
[1617265328116,28.6306,1947.4,1947.3,93.48425]
[1617265330618,10.0,1947.9,1947.3,93.48425]
[1617265330818,9.2341,1947.9,1947.3,93.48425]
[1617265331223,9.2341,1947.9,1947.3,95.48425]
[1617265332123,9.2341,1947.9,1947.8,2.90695]
[1617265332323,9.2341,1947.9,1947.8,34.48665]
[1617265333223,9.2341,1947.9,1947.8,36.48665]
[1617265333825,8.348,1947.9,1947.8,37.52265]
[1617265335226,6.8247,1947.9,1947.8,37.52265]
[1617265336027,6.0569,1947.9,1947.8,37.52265]
[1617265336227,4.7773,1947.9,1947.8,37.52265]
[1617265336627,3.5444,1947.9,1947.8,37.52265]
[1617265337030,2.2218,1947.9,1947.8,109.62735]
[1617265338230,2.1217,1947.9,1947.8,109.62735]
[1617265339032,0.0647,1947.9,1947.8,109.62735]
[1617265339232,0.01494889,1949.4,1947.8,109.62735]
[1617265339433,0.01494889,1949.4,1947.8,37.52265]
[1617265339634,0.01494025,1949.5,1948.9,75.1437]
[1617265339833,0.01494025,1949.5,1949.0,30.0]
[1617265340032,0.01494022,1949.6,1949.4,2.90695]
[1617265340233,0.01494022,1949.6,1949.5,30.0]
[1617265341033,0.04482004,1949.7,1949.5,30.0]
[1617265341234,0.01493961,1949.7,1949.5,30.0]
[1617265341734,0.01491686,1949.9,1949.5,30.0]
[1617265342136,0.01491686,1949.9,1949.8,34.21165]
[1617265342533,0.01491593,1950.0,1949.8,34.21165]
[1617265342935,0.01491517,1950.1,1949.8,34.21165]
[1617265344136,0.01491517,1950.1,1950.0,2.90695]
[1617265344333,0.01491517,1950.1,1950.0,114.54665]
[1617265347138,0.04474556,1950.2,1950.0,114.54665]
[1617265347537,0.01491524,1950.1,1950.0,114.54665]
[1617265348544,0.01491524,1950.1,1950.0,32.90695]
[1617265349144,0.02983077,1950.1,1950.0,32.90695]
[1617265349341,0.02983077,1950.1,1950.0,2.90695]
[1617265349740,0.02983077,1950.1,1949.2,30.0]
[1617265349741,0.14916656,1950.1,1949.2,30.0]
[1617265350242,0.01491758,1949.7,1949.2,30.0]
[1617265350441,2.92186241,1949.8,1949.2,30.0]
[1617265352046,2.92186241,1949.8,1949.2,31.2235]
[1617265352246,2.92186241,1949.8,1949.7,2.90695]
[1617265352447,2.90695,1949.8,1949.7,2.90695]
[1617265353048,0.01491282,1949.9,1949.7,2.90695]
[1617265353248,0.01491282,1949.9,1949.7,32.90695]
[1617265353449,0.01490634,1950.0,1949.7,32.90695]
[1617265354248,0.01490634,1950.0,1949.9,2.90695]
[1617265354448,0.01490634,1950.0,1949.9,32.90695]
[1617265354647,0.01490634,1950.0,1949.9,34.51915]
[1617265355049,0.01490642,1950.1,1949.9,34.51915]
[1617265356452,0.01490642,1950.1,1949.9,32.90695]
[1617265357653,0.01490582,1950.2,1949.9,32.90695]
[1617265358255,0.01490582,1950.2,1950.1,2.90695]
[1617265358854,0.05962585,1950.2,1950.1,2.90695]
[1617265359454,0.1490756,1950.2,1950.1,2.90695]
[1617265359654,0.1490756,1950.2,1949.3,58.0963]
[1617265359855,1.75687158,1950.2,1947.9,30.0]
[1617265360255,4.05005,1949.4,1947.9,30.0]
[1617265360457,4.06496062,1949.4,1947.9,30.0]
[1617265360857,4.05005,1949.4,1947.9,30.0]
[1617265361256,4.05005,1949.4,1947.9,29.99]
[1617265361757,4.05005,1949.4,1948.0,29.99]
[1617265362157,4.05005,1949.4,1949.3,2.90695]
[1617265362357,2.90695,1949.4,1949.3,2.90695]
[1617265362960,0.01490993,1949.6,1949.3,32.89695]
[1617265363359,14.979,1949.8,1949.3,32.89695]
[1617265363759,14.73912199,1949.9,1949.3,32.89695]
[1617265363760,14.70930733,1949.9,1949.3,32.89695]
[1617265364158,14.70930733,1949.9,1949.8,2.90695]
[1617265364360,0.0149064,1950.0,1949.8,2.90695]
[1617265364559,0.0149064,1950.0,1949.8,4.44065]
[1617265364759,0.01489651,1950.2,1949.8,4.44065]
[1617265365160,0.01489651,1950.2,1949.8,34.43065]
[1617265365759,13.89959663,1950.3,1949.8,34.43065]
[1617265366159,0.01489673,1950.2,1950.0,102.4936]
[1617265366359,13.89959635,1950.3,1950.0,102.4936]
[1617265367563,13.8847,1950.3,1950.0,102.4936]
[1617265368264,13.8847,1950.3,1950.2,3.91125]
[1617265368563,13.8847,1950.3,1950.2,33.90125]
[1617265381285,5.35527659,1950.9,1950.2,33.90125]
[1617265381683,5.34040468,1950.9,1950.2,33.90125]
[1617265382285,5.34040468,1950.9,1950.8,2.90695]
[1617265382686,5.35527616,1950.9,1950.1,29.99]
[1617265383385,5.34040468,1950.9,1950.1,29.99]
[1617265383788,5.35527623,1950.9,1950.1,29.99]
[1617265384187,5.34040468,1950.9,1950.0,72.5036]
[1617265384385,5.34040468,1950.9,1949.4,30.0]
[1617265384386,2.43345468,1950.9,1949.4,30.0]
[1617265384586,3.57715468,1950.9,1949.4,30.0]
[1617265384787,14.6814,1950.8,1949.4,30.0]
[1617265385392,0.01487339,1950.7,1948.8,101.5057]
[1617265385988,0.01487437,1950.6,1948.8,101.5057]
[1617265386390,2.90695,1950.6,1950.5,2.90695]